[Event "AUT-ch U18 Boys 2022"]
[Site "Sankt Veit an der Glan"]
[Date "2022.04.10"]
[Round "2"]
[White "Kristoferitsch, Daniel"]
[Black "Stadlinger, Matthias"]
[Result "1-0"]
[ECO "A21"]
[WhiteElo "2253"]
[BlackElo "2013"]
[Annotator "RC"]
[PlyCount "98"]
[EventDate "2022.04.11"]
[EventType "swiss"]
[EventCountry "AUT"]
[SourceTitle "playchess.com"]
[Source "ChessBase"]
[SourceQuality "1"]
[TimeControl "5400+30"]

1. c4 {[%emt 0:00:03]} d6 {[%emt 0:00:17]} 2. Nc3 {[%emt 0:01:07]} e5 {[%emt 0:00:16]} 3. g3 {[%emt 0:01:05]} f5 {[%emt 0:01:28]} 4. Bg2 {[%emt 0:00:13]} Nf6 {[%emt 0:00:21]} 5. d4 {[%emt 0:09:17]} e4 {[%emt 0:12:53]} 6. f3 {[%emt 0:01:53]} exf3 {[%emt 0:04:23]} 7. Nxf3 {[%emt 0:06:57]} g6 {[%emt 0:00:26]} 8. O-O {[%emt 0:00:35]} Bg7 {[%emt 0:01:27]} 9. Bg5 {[%emt 0:02:59]} O-O {[%emt 0:02:01]} 10. Qd2 {[%emt 0:00:23]} c6 {[%emt 0:05:45]} 11. Kh1 {[%emt 0:08:09]} Qb6 {[%emt 0:16:50]} 12. Be3 {[%emt 0:17:15]} Nbd7 {[%emt 0:18:05]} 13. d5 {[%emt 0:02:41]} c5 {[%emt 0:00:40]} 14. Rae1 {[%emt 0:07:20]} Ng4 {[%emt 0:01:09]} 15. Bf4 {[%emt 0:01:07]} Nde5 {[%emt 0:01:53]} 16. b3 {[%emt 0:00:52]} Bd7 {[%emt 0:01:08]} 17. Ng5 {[%emt 0:04:41]} Qa5 {[%emt 0:05:27]} 18. Rc1 {[%emt 0:05:37]} Nf7 {[%emt 0:04:08]} 19. Ne6 {[%emt 0:02:05]} Rfe8 {[%emt 0:00:08]} 20. Nxg7 {[%emt 0:02:03]} Kxg7 {[%emt 0:00:08]} 21. Qb2 {[%emt 0:01:03]} Nge5 {[%emt 0:01:00]} 22. Bd2 {[%emt 0:04:50]} Qb6 {[%emt 0:01:57]} 23. Qc2 {[%emt 0:00:09]} Re7 {[%emt 0:00:49]} 24. h3 {[%emt 0:01:44]} Rae8 {[%emt 0:02:28]} 25. Rf2 {[%emt 0:00:05]} Kg8 {[%emt 0:00:17]} 26. Rcf1 {[%emt 0:00:09]} Qd8 {[%emt 0:01:35]} 27. Bc1 {[%emt 0:00:21]} a6 {[%emt 0:02:00]} 28. a4 {[%emt 0:00:06]} Bc8 {[%emt 0:01:01]} 29. Qd2 {[%emt 0:00:12]} Qb6 {[%emt 0:03:32]} 30. Qc2 {[%emt 0:00:31]} Qb4 {[%emt 0:03:37]} 31. Bd2 {[%emt 0:00:38]} Qb6 {[%emt 0:00:01]} 32. Kh2 {[%emt 0:00:08]} Qc7 {[%emt 0:00:39]} 33. Bc1 {[%emt 0:02:04]} Qd7 {[%emt 0:00:40]} 34. Qd2 {[%emt 0:02:13]} Rf8 {[%emt 0:01:48]} 35. Bb2 {[%emt 0:00:56]} Nd8 {[%emt 0:01:49]} 36. e4 {[%emt 0:00:52]} Ref7 {[%emt 0:00:33]} 37. exf5 {[%emt 0:01:10]} Rxf5 {[%emt 0:00:08]} 38. Ne4 {[%emt 0:00:16]} Qe7 {[%emt 0:00:28]} 39. g4 {[%emt 0:05:55]} Rxf2 {[%emt 0:01:57]} 40. Rxf2 {[%emt 0:00:07]} Rxf2 {[%emt 0:00:03]} 41. Qxf2 {[%emt 0:00:32]} Ndf7 {[%emt 0:00:17]} 42. Qf6 {[%emt 0:01:31]} Kf8 {[%emt 0:01:23]} 43. Bxe5 {[%emt 0:00:34]} Qxe5+ {[%emt 0:01:24]} 44. Qxe5 {[%emt 0:00:07]} dxe5 {[%emt 0:00:18]} 45. Nxc5 {[%emt 0:00:11]} Ke7 {[%emt 0:00:12]} 46. a5 {[%emt 0:03:40]} Nd6 {[%emt 0:02:43]} 47. Kg3 {[%emt 0:00:36]} Kf6 {[%emt 0:01:40]} 48. Bf3 {[%emt 0:00:41]} h5 {[%emt 0:00:37]} 49. gxh5 {[%emt 0:00:43]} Nf5+ {[%emt 0:00:13]} 1-0

[Event "AUT-ch U18 Boys 2022"]
[Site "Sankt Veit an der Glan"]
[Date "2022.04.10"]
[Round "2"]
[White "Cafasso, Elia"]
[Black "Tumanyan, Gor"]
[Result "1/2-1/2"]
[ECO "B72"]
[WhiteElo "2061"]
[BlackElo "1818"]
[Annotator "NA RC"]
[PlyCount "93"]
[EventDate "2022.04.11"]
[EventType "swiss"]
[EventCountry "AUT"]
[SourceTitle "playchess.com"]
[Source "ChessBase"]
[SourceQuality "1"]
[TimeControl "5400+30"]

1. e4 {[%emt 0:00:05]} c5 {[%emt 0:00:04]} 2. Nf3 {[%emt 0:00:03]} g6 {[%emt 0:00:04]} 3. d4 {[%emt 0:00:09]} cxd4 {[%emt 0:00:03]} 4. Nxd4 {[%emt 0:00:03]} Bg7 {[%emt 0:00:06]} 5. Nc3 {[%emt 0:00:28]} Nc6 {[%emt 0:00:18]} 6. Be3 {[%emt 0:00:16]} Nf6 {[%emt 0:00:13]} 7. Bc4 {[%emt 0:01:30]} O-O {[%emt 0:00:20]} 8. O-O {[%emt 0:01:02]} d6 {[%emt 0:07:02]} 9. h3 {[%emt 0:00:27]} Bd7 {[%emt 0:02:56]} 10. Bb3 {[%emt 0:02:21]} Nxd4 {[%emt 0:12:36]} 11. Bxd4 {[%emt 0:00:18]} Bc6 {[%emt 0:03:52]} 12. Re1 {[%emt 0:01:30]} e5 {[%emt 0:10:40]} 13. Be3 {[%emt 0:00:03]} Nxe4 {[%emt 0:04:35]} 14. Nxe4 {[%emt 0:04:21]} Bxe4 {[%emt 0:00:06]} 15. Qd2 {[%emt 0:01:23]} Qc7 {[%emt 0:06:19]} 16. Rad1 {[%emt 0:00:31]} Rfc8 {[%emt 0:07:22]} 17. Qxd6 {[%emt 0:04:20]} Qxd6 {[%emt 0:00:28]} 18. Rxd6 {[%emt 0:00:04]} Bxc2 {[%emt 0:07:34]} 19. Bxc2 {[%emt 0:01:37]} Rxc2 {[%emt 0:00:02]} 20. Red1 {[%emt 0:00:04]} h5 {[%emt 0:15:03]} 21. Rd7 {[%emt 0:01:53]} Rxb2 {[%emt 0:11:11]} 22. Rc7 {[%emt 0:00:33]} e4 {[%emt 0:00:48]} 23. Bf4 {[%emt 0:00:14]} Rb6 {[%emt 0:06:27]} 24. Rdd7 {[%emt 0:01:02]} Rf8 {[%emt 0:01:26]} 25. Bd6 {[%emt 0:00:18]} Rxd6 {[%emt 0:00:12]} 26. Rxd6 {[%emt 0:00:01]} Be5 {[%emt 0:00:06]} 27. Rdd7 {[%emt 0:00:03]} Bxc7 {[%emt 0:00:05]} 28. Rxc7 {[%emt 0:00:03]} Rb8 {[%emt 0:01:50]} 29. Kf1 {[%emt 0:00:09]} Kg7 {[%emt 0:00:28]} 30. Ke2 {[%emt 0:00:11]} a5 {[%emt 0:00:50]} 31. a4 {[%emt 0:00:47]} Rd8 {[%emt 0:00:34]} 32. Ke3 {[%emt 0:00:19]} Rd3+ {[%emt 0:00:38]} 33. Kxe4 {[%emt 0:00:04]} Rb3 {[%emt 0:00:08]} 34. Kd4 {[%emt 0:01:45]} b5 {[%emt 0:00:58]} 35. axb5 {[%emt 0:00:05]} Rxb5 {[%emt 0:00:05]} 36. Ra7 {[%emt 0:00:04]} Rb2 {[%emt 0:00:10]} 37. Ke3 {[%emt 0:00:06]} Ra2 {[%emt 0:00:09]} 38. Ra6 {[%emt 0:00:18]} g5 {[%emt 0:00:42]} 39. Kf3 {[%emt 0:01:29]} Ra3+ {[%emt 0:00:21]} 40. Ke4 {[%emt 0:00:08]} Ra2 {[%emt 0:00:42]} 41. Kf3 {[%emt 0:00:04]} f6 {[%emt 0:00:27]} 42. g4 {[%emt 0:00:07]} hxg4+ {[%emt 0:01:07]} 43. hxg4 {[%emt 0:00:06]} a4 {[%emt 0:00:32]} 44. Kg3 {[%emt 0:00:17]} a3 {[%emt 0:00:39]} 45. f3 {[%emt 0:00:09]} Ra1 {[%emt 0:00:36]} 46. Ra7+ {[%emt 0:00:05]} Kg6 {[%emt 0:00:07]} 47. Kg2 {[%emt 0:00:04]} 1/2-1/2

[Event "AUT-ch U18 Boys 2022"]
[Site "Sankt Veit an der Glan"]
[Date "2022.04.10"]
[Round "2"]
[White "Hechl, Fabian"]
[Black "Ilijic, Mihajilo"]
[Result "0-1"]
[ECO "B15"]
[WhiteElo "2023"]
[BlackElo "2079"]
[Annotator "NA RC"]
[PlyCount "68"]
[EventDate "2022.04.11"]
[EventType "swiss"]
[EventCountry "AUT"]
[SourceTitle "playchess.com"]
[Source "ChessBase"]
[SourceQuality "1"]
[TimeControl "5400+30"]

1. e4 {[%emt 0:00:03]} c6 {[%emt 0:00:10]} 2. d4 {[%emt 0:00:03]} d5 {[%emt 0:00:06]} 3. Nc3 {[%emt 0:00:02]} dxe4 {[%emt 0:00:07]} 4. Nxe4 {[%emt 0:00:04]} Nf6 {[%emt 0:00:11]} 5. Nxf6+ {[%emt 0:00:02]} exf6 {[%emt 0:00:10]} 6. c3 {[%emt 0:00:02]} Bd6 {[%emt 0:00:21]} 7. Bd3 {[%emt 0:00:04]} O-O {[%emt 0:00:12]} 8. Qc2 {[%emt 0:00:01]} Re8+ {[%emt 0:00:11]} 9. Ne2 {[%emt 0:00:01]} h5 {[%emt 0:00:16]} 10. Be3 {[%emt 0:00:26]} Nd7 {[%emt 0:07:29]} 11. O-O-O {[%emt 0:00:04]} Nf8 {[%emt 0:04:06]} 12. Kb1 {[%emt 0:00:02]} Be6 {[%emt 0:03:32]} 13. c4 {[%emt 0:00:01]} b5 {[%emt 0:08:01]} 14. cxb5 {[%emt 0:00:55]} Qa5 {[%emt 0:04:27]} 15. Nc3 {[%emt 0:07:17]} cxb5 {[%emt 0:01:34]} 16. d5 {[%emt 0:12:54]} Bg4 {[%emt 0:06:35]} 17. Rd2 {[%emt 0:18:17]} Rac8 {[%emt 0:06:25]} 18. Qb3 {[%emt 0:05:30]} Bd7 {[%emt 0:06:37]} 19. Ne4 {[%emt 0:04:27]} Bb4 {[%emt 0:07:47]} 20. Rdd1 {[%emt 0:05:09]} Ng6 {[%emt 0:12:53]} 21. a3 {[%emt 0:11:49]} Bf8 {[%emt 0:00:17]} 22. d6 {[%emt 0:08:09]} Ne5 {[%emt 0:07:11]} 23. Nc5 {[%emt 0:01:48]} Bc6 {[%emt 0:01:39]} 24. d7 {[%emt 0:06:23]} Nxd7 {[%emt 0:03:11]} 25. Nxd7 {[%emt 0:01:16]} Bxd7 {[%emt 0:00:05]} 26. Bh7+ {[%emt 0:00:35]} Kxh7 {[%emt 0:00:09]} 27. Rxd7 {[%emt 0:00:33]} b4 {[%emt 0:02:19]} 28. Qxf7 {[%emt 0:02:47]} Qf5+ {[%emt 0:01:06]} 29. Ka2 {[%emt 0:06:04]} bxa3 {[%emt 0:02:14]} 30. Bd4 {[%emt 0:08:25]} axb2 {[%emt 0:02:12]} 31. Rd5 {[%emt 0:01:17]} b1=Q+ {[%emt 0:03:02]} 32. Rxb1 {[%emt 0:00:08]} Qc2+ {[%emt 0:00:12]} 33. Rb2 {[%emt 0:00:38]} Qa4+ {[%emt 0:00:10]} 34. Kb1 {[%emt 0:00:07]} Re1# {[%emt 0:00:42]} 0-1

[Event "AUT-ch U18 Boys 2022"]
[Site "Sankt Veit an der Glan"]
[Date "2022.04.10"]
[Round "2"]
[White "Buchegger, Fridolin"]
[Black "Schernthaner, David"]
[Result "0-1"]
[ECO "E08"]
[WhiteElo "2010"]
[BlackElo "2213"]
[Annotator "RC"]
[PlyCount "80"]
[EventDate "2022.04.11"]
[EventType "swiss"]
[EventCountry "AUT"]
[SourceTitle "playchess.com"]
[Source "ChessBase"]
[SourceQuality "1"]
[TimeControl "5400+30"]

1. d4 {[%emt 0:00:04]} Nf6 {[%emt 0:00:04]} 2. c4 {[%emt 0:00:08]} e6 {[%emt 0:00:04]} 3. Nf3 {[%emt 0:00:12]} d5 {[%emt 0:00:13]} 4. g3 {[%emt 0:00:08]} Bb4+ {[%emt 0:00:52]} 5. Bd2 {[%emt 0:00:08]} Be7 {[%emt 0:00:05]} 6. Bg2 {[%emt 0:00:16]} O-O {[%emt 0:00:15]} 7. O-O {[%emt 0:00:35]} c6 {[%emt 0:00:33]} 8. Qc2 {[%emt 0:01:23]} Nbd7 {[%emt 0:00:09]} 9. Bf4 {[%emt 0:02:43]} b6 {[%emt 0:06:25]} 10. Nbd2 {[%emt 0:00:53]} Bb7 {[%emt 0:01:24]} 11. e4 {[%emt 0:09:08]} dxc4 {[%emt 0:13:49]} 12. Nxc4 {[%emt 0:00:56]} c5 {[%emt 0:01:48]} 13. e5 {[%emt 0:14:19]} Nd5 {[%emt 0:02:00]} 14. Rfd1 {[%emt 0:01:48]} Rc8 {[%emt 0:03:29]} 15. Qe2 {[%emt 0:03:06]} b5 {[%emt 0:08:04]} 16. Ne3 {[%emt 0:04:32]} c4 {[%emt 0:04:46]} 17. a4 {[%emt 0:01:47]} a6 {[%emt 0:01:34]} 18. Nd2 {[%emt 0:02:00]} Nxe3 {[%emt 0:08:18]} 19. Bxb7 {[%emt 0:05:19]} Nxd1 {[%emt 0:01:41]} 20. Rxd1 {[%emt 0:23:27]} Qb6 {[%emt 0:08:46]} 21. Bxc8 {[%emt 0:05:41]} Rxc8 {[%emt 0:00:01]} 22. axb5 {[%emt 0:00:16]} axb5 {[%emt 0:00:14]} 23. Ne4 {[%emt 0:00:12]} Qc6 {[%emt 0:05:38]} 24. Bg5 {[%emt 0:01:53]} Bf8 {[%emt 0:00:45]} 25. Qg4 {[%emt 0:02:26]} b4 {[%emt 0:03:48]} 26. Bh6 {[%emt 0:01:46]} c3 {[%emt 0:06:55]} 27. bxc3 {[%emt 0:02:50]} bxc3 {[%emt 0:00:04]} 28. Rd3 {[%emt 0:07:18]} c2 {[%emt 0:06:19]} 29. Bc1 {[%emt 0:00:07]} Qd5 {[%emt 0:04:20]} 30. Rf3 {[%emt 0:00:40]} Nxe5 {[%emt 0:04:38]} 31. Nf6+ {[%emt 0:08:22]} Kh8 {[%emt 0:00:05]} 32. Nxd5 {[%emt 0:00:05]} Nxg4 {[%emt 0:00:04]} 33. Nb6 {[%emt 0:01:56]} Rc7 {[%emt 0:01:46]} 34. Na4 {[%emt 0:00:34]} Ra7 {[%emt 0:01:02]} 35. Nc3 {[%emt 0:00:04]} Ba3 {[%emt 0:03:41]} 36. Nb5 {[%emt 0:00:57]} Bxc1 {[%emt 0:00:12]} 37. Rc3 {[%emt 0:00:29]} Ra8 {[%emt 0:00:07]} 38. Rxc2 {[%emt 0:00:05]} Bh6 {[%emt 0:00:11]} 39. Nd6 {[%emt 0:00:53]} Kg8 {[%emt 0:00:35]} 40. Rc7 {[%emt 0:00:29]} Rf8 {[%emt 0:00:13]} 0-1

[Event "AUT-ch U18 Boys 2022"]
[Site "Sankt Veit an der Glan"]
[Date "2022.04.10"]
[Round "2"]
[White "Koestner, Laurin"]
[Black "Schilcher, Marcel"]
[Result "0-1"]
[ECO "B52"]
[WhiteElo "1746"]
[BlackElo "1671"]
[Annotator "NA RC"]
[PlyCount "62"]
[EventDate "2022.04.11"]
[EventType "swiss"]
[EventCountry "AUT"]
[SourceTitle "playchess.com"]
[Source "ChessBase"]
[SourceQuality "1"]
[TimeControl "5400+30"]

1. e4 {[%emt 0:00:02]} c5 {[%emt 0:00:02]} 2. Nf3 {[%emt 0:00:12]} d6 {[%emt 0:00:06]} 3. Bb5+ {[%emt 0:00:05]} Bd7 {[%emt 0:00:02]} 4. Bxd7+ {[%emt 0:00:12]} Qxd7 {[%emt 0:00:02]} 5. c4 {[%emt 0:00:26]} Nc6 {[%emt 0:00:36]} 6. Nc3 {[%emt 0:00:04]} g6 {[%emt 0:00:40]} 7. d4 {[%emt 0:00:21]} cxd4 {[%emt 0:00:28]} 8. Nxd4 {[%emt 0:00:02]} Bg7 {[%emt 0:00:23]} 9. Be3 {[%emt 0:00:04]} Nf6 {[%emt 0:06:59]} 10. f3 {[%emt 0:00:27]} O-O {[%emt 0:05:30]} 11. O-O {[%emt 0:00:25]} Rfd8 {[%emt 0:23:32]} 12. Rc1 {[%emt 0:04:09]} b6 {[%emt 0:08:59]} 13. b3 {[%emt 0:13:49]} Rac8 {[%emt 0:07:12]} 14. Qd3 {[%emt 0:00:24]} Ne8 {[%emt 0:09:12]} 15. Rc2 {[%emt 0:06:37]} Nb4 {[%emt 0:00:37]} 16. Qe2 {[%emt 0:00:16]} Nxc2 {[%emt 0:00:13]} 17. Qxc2 {[%emt 0:00:01]} Nc7 {[%emt 0:03:06]} 18. Qf2 {[%emt 0:01:30]} Ne6 {[%emt 0:01:24]} 19. Nde2 {[%emt 0:00:22]} Nc5 {[%emt 0:01:53]} 20. g4 {[%emt 0:00:57]} Rf8 {[%emt 0:05:27]} 21. Qh4 {[%emt 0:01:50]} e6 {[%emt 0:03:14]} 22. Bh6 {[%emt 0:00:56]} Qd8 {[%emt 0:00:50]} 23. Bg5 {[%emt 0:01:30]} f6 {[%emt 0:01:44]} 24. Be3 {[%emt 0:00:07]} f5 {[%emt 0:02:13]} 25. Bg5 {[%emt 0:01:02]} Bf6 {[%emt 0:03:33]} 26. Bxf6 {[%emt 0:01:06]} Qxf6 {[%emt 0:00:31]} 27. g5 {[%emt 0:00:16]} Qe7 {[%emt 0:01:16]} 28. Ng3 {[%emt 0:00:03]} a6 {[%emt 0:00:49]} 29. Kg2 {[%emt 0:00:50]} Qg7 {[%emt 0:00:18]} 30. Rc1 {[%emt 0:00:28]} Nd3 {[%emt 0:00:12]} 31. Rc2 {[%emt 0:00:06]} Ne1+ {[%emt 0:00:09]} 0-1

[Event "AUT-ch U18 Boys 2022"]
[Site "Sankt Veit an der Glan"]
[Date "2022.04.10"]
[Round "2"]
[White "Blasge, Tobias"]
[Black "Weichhart, Daniel"]
[Result "1-0"]
[ECO "D35"]
[WhiteElo "1736"]
[BlackElo "2032"]
[Annotator "NA RC"]
[PlyCount "69"]
[EventDate "2022.04.11"]
[EventType "swiss"]
[EventCountry "AUT"]
[SourceTitle "playchess.com"]
[Source "ChessBase"]
[SourceQuality "1"]
[TimeControl "5400+30"]

1. d4 {[%emt 0:00:02]} d5 {[%emt 0:00:07]} 2. c4 {[%emt 0:00:03]} c6 {[%emt 0:00:09]} 3. Nf3 {[%emt 0:00:05]} Nf6 {[%emt 0:00:06]} 4. Nc3 {[%emt 0:00:03]} e6 {[%emt 0:00:07]} 5. cxd5 {[%emt 0:00:04]} exd5 {[%emt 0:00:21]} 6. Bg5 {[%emt 0:00:06]} h6 {[%emt 0:00:33]} 7. Bh4 {[%emt 0:03:04]} Bf5 {[%emt 0:00:45]} 8. Qb3 {[%emt 0:00:58]} Nbd7 {[%emt 0:03:29]} 9. e3 {[%emt 0:09:32]} Qb6 {[%emt 0:01:05]} 10. Nd2 {[%emt 0:03:22]} Bd6 {[%emt 0:06:55]} 11. Be2 {[%emt 0:03:55]} O-O {[%emt 0:01:45]} 12. Bg3 {[%emt 0:09:24]} Ne8 {[%emt 0:02:30]} 13. Rc1 {[%emt 0:08:04]} Ndf6 {[%emt 0:02:24]} 14. O-O {[%emt 0:04:14]} Bxg3 {[%emt 0:00:37]} 15. hxg3 {[%emt 0:00:49]} Nd6 {[%emt 0:00:09]} 16. Na4 {[%emt 0:04:50]} Qc7 {[%emt 0:07:11]} 17. Nc5 {[%emt 0:00:18]} Qe7 {[%emt 0:04:32]} 18. Rfe1 {[%emt 0:12:07]} g5 {[%emt 0:04:33]} 19. Bd3 {[%emt 0:04:59]} Bxd3 {[%emt 0:02:09]} 20. Qxd3 {[%emt 0:01:03]} Kg7 {[%emt 0:01:04]} 21. f3 {[%emt 0:08:16]} Rae8 {[%emt 0:08:59]} 22. g4 {[%emt 0:08:59]} Rh8 {[%emt 0:07:34]} 23. e4 {[%emt 0:06:12]} b6 {[%emt 0:03:57]} 24. exd5 {[%emt 0:03:17]} Qxe1+ {[%emt 0:00:41]} 25. Rxe1 {[%emt 0:00:04]} Rxe1+ {[%emt 0:00:08]} 26. Kf2 {[%emt 0:00:06]} Rhe8 {[%emt 0:00:07]} 27. Nce4 {[%emt 0:01:42]} Ndxe4+ {[%emt 0:00:55]} 28. Nxe4 {[%emt 0:00:25]} Nxe4+ {[%emt 0:00:06]} 29. fxe4 {[%emt 0:00:07]} R1xe4 {[%emt 0:02:09]} 30. dxc6 {[%emt 0:01:15]} R4e6 {[%emt 0:02:31]} 31. d5 {[%emt 0:01:25]} Rd6 {[%emt 0:00:06]} 32. Kf3 {[%emt 0:05:41]} Rc8 {[%emt 0:02:24]} 33. Ke4 {[%emt 0:00:43]} Re8+ {[%emt 0:06:05]} 34. Kd4 {[%emt 0:00:21]} Kf8 {[%emt 0:01:51]} 35. Qf5 {[%emt 0:00:38]} 1-0

[Event "AUT-ch U18 Boys 2022"]
[Site "Sankt Veit an der Glan"]
[Date "2022.04.10"]
[Round "2"]
[White "Martetschlaeger, Stefan"]
[Black "Liotta, Marcel"]
[Result "1-0"]
[ECO "B38"]
[WhiteElo "1679"]
[BlackElo "1551"]
[Annotator "NA RC"]
[PlyCount "40"]
[EventDate "2022.04.11"]
[EventType "swiss"]
[EventCountry "AUT"]
[SourceTitle "playchess.com"]
[Source "ChessBase"]
[SourceQuality "1"]
[TimeControl "5400+30"]

1. e4 {[%emt 0:00:30]} c5 {[%emt 0:00:11]} 2. Nf3 {[%emt 0:00:07]} Nc6 {[%emt 0:00:23]} 3. d4 {[%emt 0:00:11]} cxd4 {[%emt 0:00:04]} 4. Nxd4 {[%emt 0:00:15]} g6 {[%emt 0:00:04]} 5. c4 {[%emt 0:00:25]} Bg7 {[%emt 0:00:05]} 6. Be3 {[%emt 0:00:16]} Nf6 {[%emt 0:00:20]} 7. Nc3 {[%emt 0:00:22]} O-O {[%emt 0:00:08]} 8. Be2 {[%emt 0:00:25]} d6 {[%emt 0:00:05]} 9. f3 {[%emt 0:00:21]} Bd7 {[%emt 0:01:15]} 10. O-O {[%emt 0:00:47]} Qb6 {[%emt 0:00:34]} 11. Bf2 {[%emt 0:03:40]} Qa5 {[%emt 0:16:38]} 12. Qd2 {[%emt 0:07:23]} Rac8 {[%emt 0:00:46]} 13. a3 {[%emt 0:01:48]} Ne5 {[%emt 0:05:20]} 14. b3 {[%emt 0:06:21]} a6 {[%emt 0:00:38]} 15. Rac1 {[%emt 0:03:49]} Rfd8 {[%emt 0:13:15]} 16. Rfd1 {[%emt 0:09:26]} Qc7 {[%emt 0:08:21]} 17. Nc2 {[%emt 0:02:21]} b5 {[%emt 0:03:51]} 18. Nb4 {[%emt 0:04:12]} bxc4 {[%emt 0:02:01]} 19. Nbd5 {[%emt 0:02:10]} Nxd5 {[%emt 0:04:25]} 20. Nxd5 {[%emt 0:00:08]} c3 {[%emt 0:09:37]} 1-0

[Event "AUT-ch U18 Boys 2022"]
[Site "Sankt Veit an der Glan"]
[Date "2022.04.10"]
[Round "2"]
[White "Braun, Hagen"]
[Black "Marte, Lukas"]
[Result "0-1"]
[ECO "C55"]
[WhiteElo "1252"]
[BlackElo "1614"]
[Annotator "NA RC"]
[PlyCount "72"]
[EventDate "2022.04.11"]
[EventType "swiss"]
[EventCountry "AUT"]
[SourceTitle "playchess.com"]
[Source "ChessBase"]
[SourceQuality "1"]
[TimeControl "5400+30"]

1. e4 {[%emt 0:00:03]} e5 {[%emt 0:00:04]} 2. Nf3 {[%emt 0:00:05]} Nc6 {[%emt 0:00:02]} 3. Bc4 {[%emt 0:00:07]} Nf6 {[%emt 0:00:22]} 4. d3 {[%emt 0:00:09]} h6 {[%emt 0:00:29]} 5. Nc3 {[%emt 0:00:29]} d6 {[%emt 0:01:17]} 6. h3 {[%emt 0:00:11]} g6 {[%emt 0:01:08]} 7. Be3 {[%emt 0:01:54]} Bg7 {[%emt 0:00:00]} 8. Qd2 {[%emt 0:00:09]} Qe7 {[%emt 0:00:01]} 9. a3 {[%emt 0:00:34]} Be6 {[%emt 0:00:57]} 10. Bb3 {[%emt 0:00:57]} O-O-O {[%emt 0:02:01]} 11. Nd5 {[%emt 0:01:00]} Bxd5 {[%emt 0:01:42]} 12. exd5 {[%emt 0:01:36]} Nd4 {[%emt 0:00:09]} 13. O-O-O {[%emt 0:00:42]} Nxb3+ {[%emt 0:02:16]} 14. cxb3 {[%emt 0:00:04]} Nxd5 {[%emt 0:01:18]} 15. Kb1 {[%emt 0:01:11]} Kb8 {[%emt 0:03:11]} 16. Rhe1 {[%emt 0:00:28]} Nxe3 {[%emt 0:02:37]} 17. fxe3 {[%emt 0:01:06]} Rhe8 {[%emt 0:01:52]} 18. Rc1 {[%emt 0:01:28]} e4 {[%emt 0:03:49]} 19. dxe4 {[%emt 0:01:42]} Qxe4+ {[%emt 0:00:09]} 20. Ka2 {[%emt 0:09:14]} Re7 {[%emt 0:01:50]} 21. Nd4 {[%emt 0:01:36]} Rde8 {[%emt 0:02:46]} 22. Qb4 {[%emt 0:00:56]} c5 {[%emt 0:05:50]} 23. Qa4 {[%emt 0:01:38]} Qxg2 {[%emt 0:07:02]} 24. Re2 {[%emt 0:01:49]} Qe4 {[%emt 0:01:30]} 25. Rce1 {[%emt 0:01:19]} cxd4 {[%emt 0:01:08]} 26. exd4 {[%emt 0:01:31]} Qxe2 {[%emt 0:00:10]} 27. Rxe2 {[%emt 0:00:02]} Rxe2 {[%emt 0:00:11]} 28. Qd7 {[%emt 0:00:41]} Ka8 {[%emt 0:00:50]} 29. Qxd6 {[%emt 0:00:26]} Rd2 {[%emt 0:00:35]} 30. Qd7 {[%emt 0:00:21]} Rf8 {[%emt 0:00:05]} 31. d5 {[%emt 0:02:12]} Rxb2+ {[%emt 0:00:42]} 32. Ka1 {[%emt 0:00:02]} Rxb3+ {[%emt 0:00:08]} 33. Ka2 {[%emt 0:00:18]} Rb2+ {[%emt 0:00:10]} 34. Ka1 {[%emt 0:00:08]} a6 {[%emt 0:00:20]} 35. d6 {[%emt 0:00:45]} Ka7 {[%emt 0:00:07]} 36. h4 {[%emt 0:00:55]} Re8 {[%emt 0:00:11]} 0-1

[Event "AUT-ch U18 Boys 2022"]
[Site "Sankt Veit an der Glan"]
[Date "2022.04.11"]
[Round "3"]
[White "Schernthaner, David"]
[Black "Blasge, Tobias"]
[Result "1-0"]
[ECO "B12"]
[WhiteElo "2213"]
[BlackElo "1736"]
[Annotator "RC"]
[PlyCount "63"]
[EventDate "2022.04.11"]
[EventType "swiss"]
[EventCountry "AUT"]
[SourceTitle "playchess.com"]
[Source "ChessBase"]
[SourceQuality "1"]
[TimeControl "5400+30"]

1. e4 {[%emt 0:00:30]} c6 {[%emt 0:00:07]} 2. d4 {[%emt 0:00:00]} d5 {[%emt 0:00:04]} 3. e5 {[%emt 0:00:04]} Bf5 {[%emt 0:00:03]} 4. Nd2 {[%emt 0:00:16]} e6 {[%emt 0:01:48]} 5. Nb3 {[%emt 0:00:20]} Nd7 {[%emt 0:02:38]} 6. Nf3 {[%emt 0:00:11]} h6 {[%emt 0:01:39]} 7. Be2 {[%emt 0:00:22]} a6 {[%emt 0:03:50]} 8. Be3 {[%emt 0:01:39]} Qc7 {[%emt 0:02:12]} 9. O-O {[%emt 0:01:15]} g5 {[%emt 0:06:28]} 10. Ne1 {[%emt 0:10:17]} O-O-O {[%emt 0:18:19]} 11. f4 {[%emt 0:10:34]} f6 {[%emt 0:00:32]} 12. Bd3 {[%emt 0:13:06]} Bxd3 {[%emt 0:18:59]} 13. Nxd3 {[%emt 0:01:28]} Kb8 {[%emt 0:06:01]} 14. Qh5 {[%emt 0:03:38]} Bg7 {[%emt 0:08:25]} 15. Nbc5 {[%emt 0:10:27]} Nf8 {[%emt 0:05:26]} 16. Rae1 {[%emt 0:08:48]} Qe7 {[%emt 0:05:12]} 17. Bd2 {[%emt 0:03:34]} b6 {[%emt 0:10:04]} 18. Nb3 {[%emt 0:04:05]} Qe8 {[%emt 0:02:26]} 19. Qxe8 {[%emt 0:01:35]} Rxe8 {[%emt 0:00:03]} 20. fxg5 {[%emt 0:00:21]} hxg5 {[%emt 0:00:42]} 21. exf6 {[%emt 0:01:06]} Bxf6 {[%emt 0:00:34]} 22. Ne5 {[%emt 0:00:26]} Kc7 {[%emt 0:02:41]} 23. a4 {[%emt 0:02:00]} a5 {[%emt 0:01:05]} 24. c3 {[%emt 0:00:17]} Rh7 {[%emt 0:01:30]} 25. Nc1 {[%emt 0:04:40]} Nd7 {[%emt 0:01:11]} 26. Ng4 {[%emt 0:02:49]} Bd8 {[%emt 0:00:21]} 27. Ne5 {[%emt 0:02:58]} Nh6 {[%emt 0:00:46]} 28. Ncd3 {[%emt 0:00:32]} Nf5 {[%emt 0:00:25]} 29. Nxc6 {[%emt 0:08:54]} Kxc6 {[%emt 0:00:34]} 30. Rxf5 {[%emt 0:00:06]} exf5 {[%emt 0:00:04]} 31. Rxe8 {[%emt 0:00:05]} Bf6 {[%emt 0:00:49]} 32. Re6+ {[%emt 0:00:17]} 1-0